fUST/lending_fUST_20250828
["ID","MTS","AMOUNT","RATE_DAILY","PERIOD"]
[381767995,1756337448131,-151.0,0.000221,7]
[381767996,1756337448141,-151.0,0.000221,7]
[381767997,1756337448153,-151.0,0.000221,7]
[381767998,1756337448163,-151.0,0.000221,7]
[381767999,1756337448173,-151.0,0.000221,7]
[381768000,1756337448183,-170.40887,0.000221,7]
[381768001,1756337448193,-151.299239,0.000221,7]
[381768002,1756337448203,-214.211976,0.000221,7]
[381768003,1756337448214,-214.211976,0.000221,7]
[381768004,1756337448225,-214.211976,0.000221,7]
[381768005,1756337448235,-214.211976,0.000221,7]
[381768006,1756337448245,-151.0,0.000221,7]
[381768007,1756337448255,-151.0,0.000221,7]
[381768008,1756337448265,-230.095267,0.000221,7]
[381768009,1756337448276,-151.0,0.000221,7]
[381768010,1756337448286,-230.095267,0.000221,7]
[381768011,1756337448296,-151.0,0.000221,7]
[381768012,1756337448306,-230.095267,0.000221,7]
[381768013,1756337448316,-637.155111,0.000221,7]
[381768014,1756337448327,-230.095267,0.000221,7]
[381768015,1756337448337,-637.155111,0.000221,7]
[381768016,1756337448348,-637.155111,0.000221,7]
[381768017,1756337448358,-436.120696,0.000221,7]
[381768018,1756337448369,-637.155111,0.000221,7]
[381768019,1756337448384,-436.120696,0.000221,7]
[381768020,1756337448396,-436.120696,0.000221,7]
[381768021,1756337448408,-436.120696,0.000221,7]
[381768022,1756337448419,-151.0,0.000221,7]
[381768023,1756337448432,-151.0,0.000221,7]
[381768024,1756337448450,-151.0,0.000221,7]
[381768025,1756337448463,-151.0,0.000221,7]
[381768026,1756337448476,-212.456098,0.000221,7]
[381768027,1756337448489,-151.0,0.000221,7]
[381768028,1756337448502,-151.0,0.000221,7]
[381768029,1756337448514,-151.0,0.000221,7]
[381768030,1756337448526,-173.580826,0.000221,7]
[381768031,1756337448537,-173.580826,0.000221,7]
[381768032,1756337448550,-1038.942747,0.000221,7]
[381768033,1756337448562,-173.580826,0.000221,7]
[381768034,1756337448574,-151.0,0.000221,7]
[381768035,1756337448587,-1038.942747,0.000221,7]
[381768036,1756337448599,-173.580826,0.000221,7]
[381768037,1756337448613,-1038.942747,0.000221,7]
[381768038,1756337448626,-151.0,0.000221,7]
[381768039,1756337448637,-151.0,0.000221,7]
[381768040,1756337448649,-151.0,0.000221,7]
[381768041,1756337448663,-1038.942747,0.000221,7]
[381768042,1756337448677,-151.0,0.000221,7]
[381768043,1756337448690,-151.0,0.000221,7]
[381768044,1756337448703,-231.445113,0.000221,7]
[381768045,1756337448715,-151.0,0.000221,7]
[381768046,1756337448727,-425.44119842,0.000221,7]
[381768047,1756337448741,-376.238894,0.000221,7]
[381768048,1756337448759,-151.0,0.000221,7]
[381768049,1756337448771,-376.238894,0.000221,7]
[381768050,1756337448783,-151.0,0.000221,7]
[381768051,1756337448795,-151.0,0.000221,7]
[381768052,1756337448806,-376.238894,0.000221,7]
[381768053,1756337448817,-376.238894,0.000221,7]
[381768054,1756337448831,-151.0,0.000221,7]
[381768055,1756337448845,-151.0,0.000221,7]
[381768056,1756337448856,-160.0,0.000221,7]
[381768057,1756337448867,-529.56067766,0.000221,7]
[381768058,1756337448878,-151.0,0.000221,7]
[381768059,1756337448890,-151.0,0.000221,7]
[381768060,1756337448903,-151.0,0.000221,7]
[381768061,1756337448914,-804.146118,0.000221,7]
[381768062,1756337448925,-804.146118,0.000221,7]
[381768063,1756337448935,-804.146118,0.000221,7]
[381768064,1756337448947,-151.0,0.000221,7]
[381768065,1756337448958,-804.146118,0.000221,7]
[381768066,1756337448970,-153.435263,0.000221,7]
[381768067,1756337448981,-290.973282,0.000221,7]
[381768068,1756337448992,-290.973282,0.000221,7]
[381768069,1756337449005,-290.973282,0.000221,7]
[381768070,1756337449017,-290.973282,0.000221,7]
[381768071,1756337449028,-151.0,0.000221,7]
[381768072,1756337449039,-151.0,0.000221,7]
[381768073,1756337449051,-151.0,0.000221,7]
[381768074,1756337449064,-151.0,0.000221,7]
[381768075,1756337449077,-151.0,0.000221,7]
[381768076,1756337449090,-151.0,0.000221,7]
[381768077,1756337449101,-151.0,0.000221,7]
[381768078,1756337449112,-151.0,0.000221,7]
[381768079,1756337449124,-151.0,0.000221,7]
[381768080,1756337449135,-151.0,0.000221,7]
[381768081,1756337449147,-151.0,0.000221,7]
[381768082,1756337449160,-151.0,0.000221,7]
[381768083,1756337449171,-500.0,0.00022173,2]
[381768084,1756337449182,-500.0,0.00022173,2]
[381768085,1756337449193,-500.0,0.00022173,2]
[381768086,1756337449205,-500.0,0.00022173,2]
[381768087,1756337449216,-500.0,0.00022173,2]
[381768088,1756337449227,-500.0,0.00022173,2]
[381768089,1756337449239,-500.0,0.00022173,2]
[381768090,1756337449253,-500.0,0.00022173,2]
[381768091,1756337449264,-500.0,0.00022173,2]
[381768092,1756337449276,-500.0,0.00022173,2]
[381768093,1756337449288,-500.0,0.00022173,2]
[381768094,1756337449299,-500.0,0.00022173,2]
[381768095,1756337449310,-150.0,0.00022173,2]
[381768096,1756337449322,-500.0,0.00022173,2]
[381768097,1756337449333,-500.0,0.00022173,2]
[381768098,1756337449344,-500.0,0.00022173,2]
[381768099,1756337449359,-500.0,0.00022173,2]
[381768100,1756337449372,-504.4385692,0.00022173,2]
[381768101,1756337449383,-500.0,0.00022173,2]
[381768102,1756337449395,-500.0,0.00022173,2]
[381768103,1756337449406,-500.0,0.00022173,2]
[381768104,1756337449418,-500.0,0.00022173,2]
[381768105,1756337449429,-500.0,0.00022173,2]
[381768106,1756337449441,-500.0,0.00022173,2]
[381768107,1756337449452,-501.17237062,0.00022173,2]
[381768108,1756337449463,-612.7633669,0.00022173,2]
[381768109,1756337449474,-500.0,0.00022173,2]
[381768110,1756337449486,-500.0,0.00022173,2]
[381768111,1756337449497,-500.0,0.00022173,2]
[381768112,1756337449508,-500.0,0.00022173,2]
[381768113,1756337449519,-500.0,0.00022173,2]
[381768114,1756337449531,-500.0,0.00022173,2]
[381768115,1756337449542,-500.0,0.00022173,2]
[381768116,1756337449553,-500.0,0.00022173,2]
[381768117,1756337449565,-500.0,0.00022173,2]
[381768118,1756337449576,-500.0,0.00022173,2]
[381768119,1756337449587,-500.0,0.00022173,2]
[381768120,1756337449599,-500.0,0.00022173,2]
[381768121,1756337449610,-500.0,0.00022173,2]
[381768122,1756337449621,-500.0,0.00022173,2]
[381768123,1756337449633,-500.0,0.00022173,2]
[381768124,1756337449644,-500.0,0.00022173,2]
[381768125,1756337449655,-500.0,0.00022173,2]
[381768126,1756337449666,-500.0,0.00022173,2]
[381768127,1756337449677,-151.0,0.00022173,7]
[381768128,1756337449688,-151.0,0.00022173,7]
[381768129,1756337449700,-151.0,0.00022173,7]
[381768130,1756337449712,-270.285985,0.00022173,7]
[381768131,1756337449723,-151.0,0.00022173,7]
[381768132,1756337449734,-151.0,0.00022173,7]
[381768133,1756337449746,-154.292695,0.00022173,7]
[381768134,1756337449758,-151.0,0.00022173,7]
[381768135,1756337449769,-151.0,0.00022173,7]
[381768136,1756337449780,-270.114843,0.00022173,7]
[381768137,1756337449791,-151.0,0.00022173,7]
[381768138,1756337449802,-151.0,0.00022173,7]
[381768139,1756337449813,-151.0,0.00022173,7]
[381768140,1756337449824,-151.0,0.00022173,7]
[381768141,1756337449835,-151.0,0.00022173,7]
[381768142,1756337449846,-154.077561,0.00022173,7]
[381768143,1756337449857,-151.0,0.00022173,7]
[381768144,1756337449868,-151.0,0.00022173,7]
[381768145,1756337449879,-151.0,0.00022173,7]
[381768146,1756337449890,-151.0,0.00022173,7]
[381768147,1756337449901,-151.0,0.00022173,7]
[381768148,1756337449912,-151.0,0.00022173,7]
[381768149,1756337449923,-183.439541,0.00022173,7]
[381768150,1756337449934,-151.0,0.00022173,7]
[381768151,1756337449945,-151.0,0.00022173,7]
[381768152,1756337449956,-168.0,0.00022183,2]
[381768153,1756337449967,-44062.71125252,0.00022191,2]
[381768154,1756337539864,416.8655739,0.000199,2]
[381768155,1756337718550,402.97005477,0.000199,2]
[381768163,1756337880809,161.43,0.00015984,7]
[381768164,1756337881104,161.41,0.00015984,9]
[381768165,1756337904468,389.49229315,0.000199,2]
[381768167,1756338083514,313.77262264,0.000199,2]
[381768168,1756338083538,62.67050613,0.000199,2]
[381768169,1756338134992,169.003333,0.00013699,2]
[381768172,1756338259713,374.93496841,0.000199,2]
[381768173,1756338434952,362.43713612,0.000199,2]
[381768186,1756338620309,350.35589823,0.000199,2]
[381769018,1756338661491,747.29420275,0.00019261,2]
[381769020,1756338796364,338.67736826,0.000199,2]
[381769021,1756338977682,327.38812269,0.000199,2]
[381769023,1756339154086,316.47518518,0.000199,2]
[381769031,1756339224717,431.7130845,0.00030509,60]
[381769032,1756339345075,294.94267181,0.000199,2]
[381769033,1756339438225,169.003333,0.00013699,2]
[381769045,1756339525758,293.64198551,0.000199,2]
[381769046,1756339594097,-250.0,0.00020537,2]
[381769047,1756339594120,-7.28330951,0.00020755,2]
[381769048,1756339674389,1932.0,0.0002,2]
[381769049,1756339684361,225.99,0.00015984,3]
[381769050,1756339701732,292.21882713,0.000199,2]
[381769101,1756339831994,-160.71669049,0.00020755,2]
[381769103,1756339832004,-168.0,0.0002131,2]
[381769105,1756339832014,-143.09215585,0.00021316,2]
[381769107,1756339832025,-24.90784415,0.00021316,2]
[381769109,1756339832035,-168.0,0.00021375,2]
[381769111,1756339832044,-168.0,0.000215,2]
[381769113,1756339832053,-243.0,0.00021517,2]
[381769115,1756339832063,-1200.0,0.00021517,2]
[381769117,1756339832074,-300.0,0.00021517,2]
[381769119,1756339832083,-374.20898037,0.00021518,2]
[381769121,1756339832094,-886.294864,0.00021518,2]
[381769279,1756339837979,-500.0,0.00021517,2]
[381769280,1756339837994,-300.0,0.00021517,2]
[381769545,1756339840855,-200.0,0.00021517,2]
[381769547,1756339840869,-500.0,0.00021517,2]
[381769549,1756339840880,-438.30649425,0.00021517,2]
[381771316,1756339881725,282.47819953,0.000199,2]
[381771334,1756340058040,273.06225942,0.000199,2]
[381771338,1756340203337,200.0,0.00027397,120]
[381771339,1756340234807,263.96018399,0.000199,2]
[381771344,1756340385988,169.003333,0.00013699,2]
[381771345,1756340421019,255.1615112,0.000199,2]
[381771347,1756340598046,246.65612759,0.000199,2]
[381771349,1756340781962,238.43425668,0.000199,2]
[381771351,1756340803131,-203.84787914,0.00020951,2]
[381771352,1756340803158,-44.20169074,0.00021051,2]
[381771354,1756340955857,230.48644824,0.000199,2]
[381771454,1756341037937,-351.79830926,0.00021051,2]
[381771456,1756341037948,-510.0,0.00021139,2]
[381771458,1756341037958,-238.00169074,0.00021273,2]
[381771462,1756341037970,-157.99830926,0.00021273,2]
[381771464,1756341037980,-396.0,0.00021385,2]
[381771466,1756341037991,-168.0,0.00021411,2]
[381771468,1756341038000,-396.0,0.00021433,2]
[381771470,1756341038010,-168.0,0.00021466,2]
[381771472,1756341038020,-396.0,0.0002147,2]
[381771474,1756341038029,-500.0,0.00021506,2]
[381771476,1756341038038,-526.01724799,0.00021506,2]
[381771478,1756341038048,-500.0,0.00021506,2]
[381771480,1756341038058,-500.0,0.00021506,2]
[381771482,1756341038068,-500.0,0.00021506,2]
[381771485,1756341038078,-164.76691199,0.00021506,2]
[381771487,1756341038088,-500.0,0.00021506,2]
[381771489,1756341038098,-540.03806255,0.00021506,2]
[381771491,1756341038108,-500.0,0.00021506,2]
[381771493,1756341038117,-500.0,0.00021506,2]
[381771495,1756341038127,-500.0,0.00021506,2]
[381771497,1756341038137,-413.30132981,0.00021506,2]
[381771499,1756341038146,-500.0,0.00021506,2]
[381771501,1756341038156,-500.0,0.00021506,2]
[381771503,1756341038166,-500.0,0.00021506,2]
[381771505,1756341038177,-473.30666441,0.00021506,2]
[381771532,1756341038429,-500.0,0.00021506,2]
[381771534,1756341038440,-300.0,0.00021506,2]
[381771536,1756341038450,-1200.0,0.00021506,2]
[381771538,1756341038459,-4591.31986345,0.00021507,2]
[381771540,1756341038468,-1200.0,0.00021507,2]
[381771542,1756341038478,-1000.0,0.000216,2]
[381771544,1756341038487,-396.0,0.00021602,2]
[381771546,1756341038496,-230.486448,0.00021627,2]
[381771548,1756341038505,-168.0,0.0002166,2]
[381771550,1756341038514,-168.0,0.00021664,2]
[381771552,1756341038523,-2562.12565726,0.00021717,2]
[381771554,1756341038533,-186.343307,0.000218,4]
[381771556,1756341038542,-194.72792766,0.00021803,2]
[381771557,1756341038551,-1000.0,0.00021803,2]
[381771559,1756341038561,-527.33,0.00021807,3]
[381771561,1756341038570,-500.0,0.00021815,2]
[381771563,1756341038580,-500.0,0.00021815,2]
[381771565,1756341038589,-500.0,0.00021815,2]
[381771567,1756341038599,-500.0,0.00021815,2]
[381771568,1756341038608,-546.78504559,0.00021815,2]
[381771569,1756341038617,-500.0,0.00021815,2]
[381771570,1756341038627,-500.0,0.00021815,2]
[381771571,1756341038637,-500.0,0.00021815,2]
[381771572,1756341038646,-300.0,0.00021815,2]
[381771573,1756341038656,-305.98375385,0.00021815,2]
[381771574,1756341038665,-14917.24600599,0.00021816,2]
[381771575,1756341038675,-196.37689978,0.00021817,2]
[381771576,1756341038684,-3458.15469974,0.00021817,2]
[381771577,1756341038694,-2000.0,0.00021848,2]
[381771578,1756341038704,-168.0,0.0002187,2]
[381771579,1756341038713,-186.343307,0.00021879,3]
[381771580,1756341038723,-196.37689975,0.00021886,2]
[381771581,1756341038732,-168.0,0.00021886,2]
[381771582,1756341038742,-4000.0,0.00021899,2]
[381771583,1756341038751,-227.62,0.00021907,3]
[381771584,1756341038760,-682.86,0.00021907,3]
[381771585,1756341038770,-12000.0,0.00021916,2]
[381771586,1756341038779,-21349.21003655,0.00021917,2]
[381771587,1756341038789,-453.2355303,0.00021917,2]
[381771588,1756341038801,-373.24998421,0.00021917,2]
[381771589,1756341038820,-480.0,0.00021917,2]
[381771590,1756341038832,-480.0,0.00021917,2]
[381771591,1756341038841,-480.0,0.00021917,2]
[381771592,1756341038851,-480.0,0.00021917,2]
[381771593,1756341038860,-480.0,0.00021917,2]
[381771594,1756341038869,-480.0,0.00021917,2]
[381771595,1756341038879,-480.0,0.00021917,2]
[381771596,1756341038888,-480.0,0.00021917,2]
[381771597,1756341038897,-480.0,0.00021917,2]
[381771598,1756341038907,-480.0,0.00021917,2]
[381771599,1756341038916,-480.0,0.00021917,2]
[381771600,1756341038925,-480.0,0.00021917,2]
[381771601,1756341038934,-480.0,0.00021917,2]
[381771602,1756341038944,-480.0,0.00021917,2]
[381771603,1756341038953,-480.0,0.00021917,2]
[381771604,1756341038963,-480.0,0.00021917,2]
[381771605,1756341038972,-353.46576601,0.00021917,2]
[381771606,1756341038982,-480.0,0.00021917,2]
[381771607,1756341038991,-480.0,0.00021917,2]
[381771608,1756341039000,-361.09662159,0.00021917,2]
[381771609,1756341039009,-480.0,0.00021917,2]
[381771610,1756341039021,-480.0,0.00021917,2]
[381771611,1756341039041,-480.0,0.00021917,2]
[381771612,1756341039058,-480.0,0.00021917,2]
[381771613,1756341039068,-480.0,0.00021917,2]
[381771614,1756341039078,-482.40957526,0.00021917,2]
[381771615,1756341039088,-480.0,0.00021917,2]
[381771616,1756341039097,-497.83,0.00021917,2]
[381771617,1756341039106,-480.0,0.00021917,2]
[381771618,1756341039116,-480.0,0.00021917,2]
[381771619,1756341039125,-480.0,0.00021917,2]
[381771620,1756341039135,-151.0,0.00021917,2]
[381771621,1756341039144,-151.0,0.00021917,2]
[381771622,1756341039153,-151.0,0.00021917,2]
[381771623,1756341039163,-297.26444,0.00021917,2]
[381771624,1756341039173,-480.0,0.00021917,2]
[381771625,1756341039182,-480.0,0.00021917,2]
[381771626,1756341039192,-480.0,0.00021917,2]
[381771627,1756341039203,-194.77210445,0.00021917,2]
[381771628,1756341039218,-480.0,0.00021917,2]
[381771629,1756341039228,-480.0,0.00021917,2]
[381771630,1756341039237,-480.0,0.00021917,2]
[381771631,1756341039247,-480.0,0.00021917,2]
[381771632,1756341039256,-480.0,0.00021917,2]
[381771633,1756341039265,-480.0,0.00021917,2]
[381771634,1756341039275,-480.0,0.00021917,2]
[381771635,1756341039286,-480.0,0.00021917,2]
[381771636,1756341039295,-151.0,0.00021917,2]
[381771637,1756341039304,-151.0,0.00021917,2]
[381771638,1756341039314,-151.0,0.00021917,2]
[381771639,1756341039323,-480.0,0.00021917,2]
[381771640,1756341039334,-151.0,0.00021917,2]
[381771641,1756341039343,-151.0,0.00021917,2]
[381771642,1756341039353,-151.0,0.00021917,2]
[381771643,1756341039364,-151.0,0.00021917,2]
[381771644,1756341039374,-151.0,0.00021917,2]
[381771645,1756341039383,-151.0,0.00021917,2]
[381771646,1756341039395,-151.0,0.00021917,2]
[381771647,1756341039406,-151.0,0.00021917,2]
[381771648,1756341039416,-151.0,0.00021917,2]
[381771649,1756341039426,-151.0,0.00021917,2]
[381771650,1756341039436,-123.95760035,0.00021917,2]
[381771651,1756341039465,-356.04239965,0.00021917,2]
[381771652,1756341039475,-2.67760215,0.00021917,2]
[381772675,1756341074718,1000.0,0.0002,2]
[381772677,1756341129682,215.1206848,0.000199,2]
[381772680,1756341339691,214.76229986,0.000199,2]
[381772684,1756341375092,169.003333,0.00013699,2]
[381772688,1756341536905,184.84782447,0.000199,2]
[381772689,1756341536929,22.67151171,0.000199,2]
[381772690,1756341716742,200.57877191,0.000199,2]
[381772692,1756341904492,387.78562536,0.000199,2]
[381772694,1756341960282,194.0,0.00027397,120]
[381772695,1756342095389,361.93325034,0.000199,2]
[381772696,1756342128188,500.0,0.00027397,120]
[381772805,1756342238203,-300.0,0.00021421,2]
[381772807,1756342238213,-305.0,0.00021421,2]
[381772809,1756342238223,-157.03348109,0.00021421,2]
[381772810,1756342238232,-391.96651891,0.00021421,2]
[381772813,1756342238243,-108.03348109,0.00021421,2]
[381772815,1756342238252,-486.79296129,0.00021421,2]
[381772821,1756342238307,-13.20703871,0.00021421,2]
[381772823,1756342238317,-500.0,0.00021421,2]
[381772825,1756342238325,-623.32703427,0.00021421,2]
[381772827,1756342238335,-500.0,0.00021421,2]
[381772829,1756342238345,-219.25629605,0.00021421,2]
[381772830,1756342238354,-10000.0,0.00021422,2]
[381772832,1756342238363,-354.0,0.00021423,2]
[381772834,1756342238372,-2386.10995012,0.00021617,2]
[381772835,1756342238381,-1200.0,0.00021716,2]
[381772837,1756342238391,-214.1886277,0.00021716,2]
[381772839,1756342238400,-500.0,0.00021716,2]
[381772841,1756342238409,-500.0,0.00021716,2]
[381772843,1756342238418,-242.74953191,0.00021716,2]
[381772845,1756342238428,-500.0,0.00021716,2]
[381772847,1756342238437,-500.0,0.00021716,2]
[381772849,1756342238447,-500.0,0.00021716,2]
[381772851,1756342238456,-500.0,0.00021716,2]
[381772853,1756342238465,-582.89964497,0.00021717,2]
[381772855,1756342238475,-500.0,0.00021717,2]
[381772857,1756342238484,-10000.0,0.00021717,2]
[381772859,1756342238494,-196.37689975,0.00021717,2]
[381772861,1756342238503,-151.0,0.00021717,2]
[381772863,1756342238513,-151.0,0.00021717,2]
[381772865,1756342238523,-152.369809,0.00021717,2]
[381772867,1756342238531,-151.0,0.00021717,2]
[381772869,1756342238541,-151.0,0.00021717,2]
[381772871,1756342238550,-2968.407848,0.00021717,2]
[381772873,1756342238559,-2968.407848,0.00021717,2]
[381772875,1756342238569,-2968.407848,0.00021717,2]
[381772878,1756342238578,-2968.407848,0.00021717,2]
[381772880,1756342238590,-163.210989,0.00021717,2]
[381772882,1756342238600,-843.63643,0.00021717,2]
[381772884,1756342238609,-163.210989,0.00021717,2]
[381772886,1756342238618,-151.0,0.00021717,2]
[381772888,1756342238628,-843.63643,0.00021717,2]
[381772890,1756342238638,-163.210989,0.00021717,2]
[381772892,1756342238647,-1448.642326,0.00021717,2]
[381772894,1756342238656,-151.0,0.00021717,2]
[381772896,1756342238666,-163.210989,0.00021717,2]
[381772898,1756342238676,-843.63643,0.00021717,2]
[381772899,1756342238685,-151.0,0.00021717,2]
[381772902,1756342238694,-1448.642326,0.00021717,2]
[381772904,1756342238704,-843.63643,0.00021717,2]
[381772906,1756342238713,-151.0,0.00021717,2]
[381772908,1756342238722,-1448.642326,0.00021717,2]
[381772909,1756342238732,-151.0,0.00021717,2]
[381772912,1756342238742,-1448.642326,0.00021717,2]
[381772914,1756342238751,-151.0,0.00021717,2]
[381772916,1756342238760,-228.138718,0.00021717,2]
[381772917,1756342238770,-151.0,0.00021717,2]
[381772919,1756342238779,-228.138718,0.00021717,2]
[381772920,1756342238788,-228.138718,0.00021717,2]
[381772921,1756342238797,-228.138718,0.00021717,2]
[381772922,1756342238807,-2268.501496,0.00021717,2]
[381772923,1756342238816,-2268.501496,0.00021717,2]
[381772924,1756342238826,-2268.501496,0.00021717,2]
[381772925,1756342238835,-2268.501496,0.00021717,2]
[381772926,1756342238844,-289.123215,0.00021717,2]
[381772927,1756342238853,-289.123215,0.00021717,2]
[381772928,1756342238862,-919.004866,0.00021717,2]
[381772929,1756342238871,-289.123215,0.00021717,2]
[381772930,1756342238880,-151.0,0.00021717,2]
[381772931,1756342238889,-919.004866,0.00021717,2]
[381772932,1756342238898,-289.123215,0.00021717,2]
[381772933,1756342238907,-151.0,0.00021717,2]
[381772934,1756342238918,-919.004866,0.00021717,2]
[381772935,1756342238927,-151.0,0.00021717,2]
[381772936,1756342238936,-919.004866,0.00021717,2]
[381772937,1756342238945,-151.0,0.00021717,2]
[381772938,1756342238955,-151.0,0.00021717,2]
[381772939,1756342238964,-151.0,0.00021717,2]
[381772940,1756342238973,-151.0,0.00021717,2]
[381772941,1756342238982,-151.0,0.00021717,2]
[381772942,1756342238991,-151.0,0.00021717,2]
[381772943,1756342239000,-151.0,0.00021717,2]
[381772944,1756342239009,-151.0,0.00021717,2]
[381772945,1756342239019,-151.0,0.00021717,2]
[381772946,1756342239028,-151.0,0.00021717,2]
[381772947,1756342239040,-151.0,0.00021717,2]
[381772948,1756342239049,-151.0,0.00021717,2]
[381772949,1756342239059,-151.0,0.00021717,2]
[381772950,1756342239068,-151.0,0.00021717,2]
[381772951,1756342239077,-151.0,0.00021717,2]
[381772952,1756342239086,-151.0,0.00021717,2]
[381772953,1756342239095,-151.0,0.00021717,2]
[381772954,1756342239104,-151.0,0.00021717,2]
[381772955,1756342239113,-151.0,0.00021717,2]
[381772956,1756342239123,-151.0,0.00021717,2]
[381772957,1756342239132,-151.0,0.00021717,2]
[381772958,1756342239141,-151.0,0.00021717,2]
[381772959,1756342239150,-151.0,0.00021717,2]
[381772960,1756342239159,-151.0,0.00021717,2]
[381772961,1756342239168,-151.0,0.00021717,2]
[381772963,1756342239178,-166.287634,0.00021717,2]
[381772965,1756342239187,-151.0,0.00021717,2]
[381772968,1756342239197,-151.0,0.00021717,2]
[381772969,1756342239218,-151.0,0.00021717,2]
[381772971,1756342239240,-151.0,0.00021717,2]
[381772973,1756342239249,-151.0,0.00021717,2]
[381772975,1756342239259,-151.0,0.00021717,2]
[381772977,1756342239268,-151.0,0.00021717,2]
[381772979,1756342239279,-151.0,0.00021717,2]
[381772981,1756342239289,-151.0,0.00021717,2]
[381772983,1756342239299,-151.0,0.00021717,2]
[381772985,1756342239309,-151.0,0.00021717,2]
[381772987,1756342239318,-151.0,0.00021717,2]
[381772989,1756342239328,-291.507741,0.00021717,2]
[381772990,1756342239337,-166.287634,0.00021717,2]
[381772993,1756342239348,-151.0,0.00021717,2]
[381772995,1756342239358,-151.0,0.00021717,2]
[381772996,1756342239367,-151.0,0.00021717,2]
[381772997,1756342239377,-151.0,0.00021717,2]
[381772998,1756342239386,-203.132844,0.00021717,2]
[381772999,1756342239395,-151.0,0.00021717,2]
[381773000,1756342239404,-151.0,0.00021717,2]
[381773001,1756342239415,-151.0,0.00021717,2]
[381773002,1756342239425,-151.0,0.00021717,2]
[381773003,1756342239434,-151.0,0.00021717,2]
[381773004,1756342239445,-151.0,0.00021717,2]
[381773005,1756342239455,-151.0,0.00021717,2]
[381773006,1756342239466,-151.0,0.00021717,2]
[381773007,1756342239477,-166.287634,0.00021717,2]
[381773008,1756342239486,-151.0,0.00021717,2]
[381773009,1756342239496,-151.0,0.00021717,2]
[381773010,1756342239506,-151.0,0.00021717,2]
[381773011,1756342239515,-151.0,0.00021717,2]
[381773012,1756342239526,-151.0,0.00021717,2]
[381773013,1756342239536,-151.0,0.00021717,2]
[381773014,1756342239546,-151.0,0.00021717,2]
[381773015,1756342239555,-151.0,0.00021717,2]
[381773016,1756342239565,-151.0,0.00021717,2]
[381773017,1756342239575,-151.0,0.00021717,2]
[381773018,1756342239584,-151.0,0.00021717,2]
[381773019,1756342239598,-196.37689975,0.000218,2]
[381773020,1756342239607,-157.35657,0.000218,4]
[381773021,1756342239617,-417.03,0.00021806,10]
[381773022,1756342239626,-347.53,0.00021806,10]
[381773023,1756342239638,-455.24,0.00021807,3]
[381773024,1756342239647,-151.0,0.00021807,2]
[381773025,1756342239657,-151.0,0.00021807,2]
[381773026,1756342239667,-151.0,0.00021807,2]
[381773027,1756342239677,-151.0,0.00021807,2]
[381773028,1756342239688,-151.0,0.00021807,2]
[381773029,1756342239697,-151.0,0.00021807,2]